[Event "Titled Tuesday Blitz March 01 Late 2022"]
[White "Vusatiuk, Vladimir"]
[Black "Rustemov, Alexander"]
[WhiteFideId "14118610"]
[BlackFideId "4119002"]
[WhiteElo "2157"]
[BlackElo "2799"]
[Result "1-0"]
[Round "03"]
[TimeControl "180+1"]
[Date "2022.03.01"]
[WhiteClock "0:00:08"]
[BlackClock "0:00:02"]

1. d4 {[%clk 0:03:00]}  d5 {[%clk 0:02:59]} 2. c4 {[%clk 0:03:00]}  dxc4 {[%clk 0:03:00]} 3. Nf3 {[%clk 0:03:00]}  Nf6 {[%clk 0:03:00]} 4. e3 {[%clk 0:03:01]}  e6 {[%clk 0:03:01]} 5. Bxc4 {[%clk 0:03:01]}  c5 {[%clk 0:03:01]} 6. O-O {[%clk 0:03:00]}  a6 {[%clk 0:03:02]} 7. b3 {[%clk 0:03:00]}  b6 {[%clk 0:02:59]} 8. Bb2 {[%clk 0:02:54]}  Bb7 {[%clk 0:02:58]} 9. Nbd2 {[%clk 0:02:54]}  Nbd7 {[%clk 0:02:57]} 10. Rc1 {[%clk 0:02:47]}  Be7 {[%clk 0:02:55]} 11. a4 {[%clk 0:02:24]}  O-O {[%clk 0:02:54]} 12. Qe2 {[%clk 0:02:19]}  Qb8 {[%clk 0:02:46]} 13. Rfd1 {[%clk 0:02:14]}  Rd8 {[%clk 0:02:46]} 14. h3 {[%clk 0:01:53]}  h6 {[%clk 0:02:45]} 15. Bd3 {[%clk 0:01:36]}  cxd4 {[%clk 0:02:41]} 16. Bxd4 {[%clk 0:01:22]}  Nc5 {[%clk 0:02:34]} 17. Bb1 {[%clk 0:01:21]}  Bd5 {[%clk 0:02:29]} 18. Ne5 {[%clk 0:01:07]}  Qb7 {[%clk 0:02:26]} 19. Bxc5 {[%clk 0:00:57]}  Bxc5 {[%clk 0:02:24]} 20. e4 {[%clk 0:00:53]}  Bc6 {[%clk 0:00:49]} 21. Nxc6 {[%clk 0:00:53]}  Qxc6 {[%clk 0:00:50]} 22. b4 {[%clk 0:00:54]}  Qxa4 {[%clk 0:00:50]} 23. bxc5 {[%clk 0:00:53]}  bxc5 {[%clk 0:00:49]} 24. Rxc5 {[%clk 0:00:45]}  Rd4 {[%clk 0:00:44]} 25. Rdc1 {[%clk 0:00:43]}  Rad8 {[%clk 0:00:41]} 26. Nf3 {[%clk 0:00:36]}  Rd1+ {[%clk 0:00:41]} 27. Kh2 {[%clk 0:00:37]}  Qb3 {[%clk 0:00:27]} 28. Rxd1 {[%clk 0:00:32]}  Rxd1 {[%clk 0:00:27]} 29. Bc2 {[%clk 0:00:31]}  Qb8+ {[%clk 0:00:26]} 30. e5 {[%clk 0:00:26]}  Rd5 {[%clk 0:00:25]} 31. Rxd5 {[%clk 0:00:24]}  Nxd5 {[%clk 0:00:25]} 32. Qxa6 {[%clk 0:00:21]}  g6 {[%clk 0:00:26]} 33. Bxg6 {[%clk 0:00:15]}  Qb4 {[%clk 0:00:17]} 34. Bh5 {[%clk 0:00:11]}  Qf4+ {[%clk 0:00:16]} 35. g3 {[%clk 0:00:11]}  Qf5 {[%clk 0:00:12]} 36. Bg4 {[%clk 0:00:11]}  Qc2 {[%clk 0:00:13]} 37. Qf1 {[%clk 0:00:10]}  Ne3 {[%clk 0:00:13]} 38. Qe1 {[%clk 0:00:07]}  Nd5 {[%clk 0:00:12]} 39. h4 {[%clk 0:00:06]}  Kg7 {[%clk 0:00:12]} 40. Kh3 {[%clk 0:00:06]}  Qd3 {[%clk 0:00:11]} 41. Ng1 {[%clk 0:00:04]}  Nf4+ {[%clk 0:00:11]} 42. Kh2 {[%clk 0:00:04]}  Nd5 {[%clk 0:00:10]} 43. Qe2 {[%clk 0:00:04]}  Qb1 {[%clk 0:00:10]} 44. Nf3 {[%clk 0:00:03]}  Qa1 {[%clk 0:00:08]} 45. Bh3 {[%clk 0:00:04]}  Ne7 {[%clk 0:00:08]} 46. Bg2 {[%clk 0:00:03]}  Nd5 {[%clk 0:00:08]} 47. Nd2 {[%clk 0:00:03]}  Ne7 {[%clk 0:00:07]} 48. Qg4+ {[%clk 0:00:04]}  Kf8 {[%clk 0:00:07]} 49. Ne4 {[%clk 0:00:04]}  Qxe5 {[%clk 0:00:06]} 50. h5 {[%clk 0:00:03]}  Nf5 {[%clk 0:00:06]} 51. Qf4 {[%clk 0:00:02]}  Qb2 {[%clk 0:00:07]} 52. Nd6 {[%clk 0:00:01]}  Nxd6 {[%clk 0:00:02]} 53. Qxd6+ {[%clk 0:00:02]}  Kg7 {[%clk 0:00:03]} 54. Qf4 {[%clk 0:00:03]}  Qa2 {[%clk 0:00:03]} 55. Qg4+ {[%clk 0:00:03]}  Kf8 {[%clk 0:00:02]} 56. Qf3 {[%clk 0:00:04]}  Kg7 {[%clk 0:00:03]} 57. Bh3 {[%clk 0:00:05]}  Qc4 {[%clk 0:00:01]} 58. Kg2 {[%clk 0:00:06]}  Qc2 {[%clk 0:00:01]} 59. Qg4+ {[%clk 0:00:06]}  Kf8 {[%clk 0:00:01]} 60. Qf4 {[%clk 0:00:07]}  Kg7 {[%clk 0:00:01]} 61. Qe5+ {[%clk 0:00:08]}  Kf8 {[%clk 0:00:02]} 62. Bg4 {[%clk 0:00:08]}  Kg8 {[%clk 0:00:02]} 63. Bf3 {[%clk 0:00:08]}  Kf8 {[%clk 0:00:01]} 64. Be4 {[%clk 0:00:08]}  Kg8 {[%clk 0:00:02]} 65. Bxc2 {[%clk 0:00:08]} 1-0


[Site "https://www.chess.com"]

[Event "Titled Tuesday Blitz March 01 Late 2022"]
[White "Weetik, Vjacheslav"]
[Black "Salinas Herrera, Pablo"]
[WhiteFideId "4153472"]
[BlackFideId "3407128"]
[WhiteElo "2469"]
[BlackElo "2541"]
[Result "0-1"]
[Round "03"]
[TimeControl "180+1"]
[Date "2022.03.01"]
[WhiteClock "0:00:01"]
[BlackClock "0:00:56"]

1. d4 {[%clk 0:02:59]}  d5 {[%clk 0:03:00]} 2. Bf4 {[%clk 0:02:59]}  Nf6 {[%clk 0:02:59]} 3. e3 {[%clk 0:02:59]}  e6 {[%clk 0:03:00]} 4. Nd2 {[%clk 0:02:52]}  Bd6 {[%clk 0:03:00]} 5. c3 {[%clk 0:02:50]}  O-O {[%clk 0:03:00]} 6. Ngf3 {[%clk 0:02:49]}  c5 {[%clk 0:02:57]} 7. Bg3 {[%clk 0:02:49]}  Qc7 {[%clk 0:02:49]} 8. dxc5 {[%clk 0:02:43]}  Qxc5 {[%clk 0:02:50]} 9. c4 {[%clk 0:02:43]}  Bxg3 {[%clk 0:02:47]} 10. hxg3 {[%clk 0:02:43]}  Rd8 {[%clk 0:02:48]} 11. a3 {[%clk 0:02:37]}  dxc4 {[%clk 0:02:45]} 12. Bxc4 {[%clk 0:02:31]}  Nc6 {[%clk 0:02:45]} 13. Qc2 {[%clk 0:02:19]}  h6 {[%clk 0:02:36]} 14. b4 {[%clk 0:02:16]}  Qe7 {[%clk 0:02:35]} 15. O-O {[%clk 0:02:01]}  Bd7 {[%clk 0:02:32]} 16. Qb2 {[%clk 0:02:00]}  Rac8 {[%clk 0:02:31]} 17. Rac1 {[%clk 0:01:58]}  Be8 {[%clk 0:02:31]} 18. Rfd1 {[%clk 0:01:55]}  Rc7 {[%clk 0:02:15]} 19. Be2 {[%clk 0:01:53]}  Rdc8 {[%clk 0:02:13]} 20. Nb3 {[%clk 0:01:50]}  Nd5 {[%clk 0:02:09]} 21. Bd3 {[%clk 0:01:39]}  Nd8 {[%clk 0:02:06]} 22. Nbd4 {[%clk 0:01:22]}  Ba4 {[%clk 0:02:05]} 23. Re1 {[%clk 0:01:19]}  Be8 {[%clk 0:01:49]} 24. Ne5 {[%clk 0:01:03]}  Qf6 {[%clk 0:01:44]} 25. Ndf3 {[%clk 0:00:51]}  Nc3 {[%clk 0:01:44]} 26. Rc2 {[%clk 0:00:45]}  Ba4 {[%clk 0:01:40]} 27. Rd2 {[%clk 0:00:42]}  Qe7 {[%clk 0:01:28]} 28. Nd4 {[%clk 0:00:38]}  a6 {[%clk 0:01:25]} 29. f4 {[%clk 0:00:22]}  Be8 {[%clk 0:01:17]} 30. Rc2 {[%clk 0:00:20]}  Ba4 {[%clk 0:01:07]} 31. Rf2 {[%clk 0:00:18]}  Qd6 {[%clk 0:01:03]} 32. g4 {[%clk 0:00:16]}  Be8 {[%clk 0:01:01]} 33. Rc2 {[%clk 0:00:12]}  Nd5 {[%clk 0:00:58]} 34. Rxc7 {[%clk 0:00:12]}  Rxc7 {[%clk 0:00:58]} 35. Qf2 {[%clk 0:00:11]}  Rc3 {[%clk 0:00:57]} 36. Bb1 {[%clk 0:00:10]}  Rxa3 {[%clk 0:00:57]} 37. g5 {[%clk 0:00:09]}  hxg5 {[%clk 0:00:57]} 38. Qc2 {[%clk 0:00:08]}  g6 {[%clk 0:00:57]} 39. Nc4 {[%clk 0:00:06]}  Qxb4 {[%clk 0:00:57]} 40. Re2 {[%clk 0:00:01]}  Rc3 {[%clk 0:00:56]} 0-1


[Site "https://www.chess.com"]

[Event "Titled Tuesday Blitz March 01 Late 2022"]
[White "Yurtseven, Melih"]
[Black "Zakhartsov, Vladimir"]
[WhiteFideId "6312160"]
[BlackFideId "4145097"]
[WhiteElo "2160"]
[BlackElo "2432"]
[Result "1-0"]
[Round "03"]
[TimeControl "180+1"]
[Date "2022.03.02"]
[WhiteClock "0:02:51"]
[BlackClock "0:02:48"]

1. Nf3 {[%clk 0:03:00]}  Nf6 {[%clk 0:02:59]} 2. g3 {[%clk 0:03:01]}  d5 {[%clk 0:02:59]} 3. Bg2 {[%clk 0:03:01]}  c6 {[%clk 0:03:00]} 4. O-O {[%clk 0:03:01]}  Bg4 {[%clk 0:03:01]} 5. d3 {[%clk 0:03:02]}  Nbd7 {[%clk 0:03:01]} 6. Nbd2 {[%clk 0:03:01]}  e5 {[%clk 0:03:02]} 7. e4 {[%clk 0:03:01]}  dxe4 {[%clk 0:03:00]} 8. dxe4 {[%clk 0:03:02]}  Qc7 {[%clk 0:02:59]} 9. Qe1 {[%clk 0:03:03]}  Bc5 {[%clk 0:02:54]} 10. h3 {[%clk 0:03:02]}  Bxf3 {[%clk 0:02:51]} 11. Bxf3 {[%clk 0:03:00]}  O-O {[%clk 0:02:52]} 12. Kg2 {[%clk 0:02:58]}  Rad8 {[%clk 0:02:51]} 13. Nb3 {[%clk 0:02:58]}  Be7 {[%clk 0:02:50]} 14. Be3 {[%clk 0:02:55]}  Nb6 {[%clk 0:02:50]} 15. Qe2 {[%clk 0:02:52]}  Na4 {[%clk 0:02:48]} 16. c3 {[%clk 0:02:52]}  Bc5 {[%clk 0:02:48]} 17. Nxc5 {[%clk 0:02:51]} 1-0


[Site "https://www.chess.com"]

[Event "Titled Tuesday Blitz March 01 Late 2022"]
[White "Abdrlauf, Elham"]
[Black "Christie, Joshua"]
[WhiteFideId "1533533"]
[BlackFideId "7402074"]
[WhiteElo "2334"]
[BlackElo "2078"]
[Result "1-0"]
[Round "04"]
[TimeControl "180+1"]
[Date "2022.03.01"]
[WhiteClock "0:02:03"]
[BlackClock "0:00:17"]

1. e4 {[%clk 0:02:59]}  e6 {[%clk 0:02:55]} 2. d4 {[%clk 0:03:00]}  d5 {[%clk 0:02:56]} 3. Nc3 {[%clk 0:03:00]}  Bb4 {[%clk 0:02:55]} 4. e5 {[%clk 0:03:00]}  c5 {[%clk 0:02:56]} 5. a3 {[%clk 0:03:00]}  Bxc3+ {[%clk 0:02:53]} 6. bxc3 {[%clk 0:03:01]}  Qc7 {[%clk 0:02:49]} 7. Bd2 {[%clk 0:02:58]}  b6 {[%clk 0:02:45]} 8. Rb1 {[%clk 0:02:58]}  Ba6 {[%clk 0:02:41]} 9. Nf3 {[%clk 0:02:56]}  Bxf1 {[%clk 0:02:39]} 10. Kxf1 {[%clk 0:02:57]}  Ne7 {[%clk 0:02:34]} 11. g3 {[%clk 0:02:56]}  h5 {[%clk 0:02:28]} 12. Kg2 {[%clk 0:02:54]}  Nf5 {[%clk 0:02:28]} 13. h3 {[%clk 0:02:52]}  Nc6 {[%clk 0:02:24]} 14. Bf4 {[%clk 0:02:49]}  Rc8 {[%clk 0:02:19]} 15. g4 {[%clk 0:02:49]}  Nfe7 {[%clk 0:02:18]} 16. Qd3 {[%clk 0:02:46]}  Na5 {[%clk 0:01:58]} 17. Bg3 {[%clk 0:02:33]}  Ng6 {[%clk 0:01:51]} 18. Ng5 {[%clk 0:02:33]}  Nf8 {[%clk 0:01:32]} 19. Rbf1 {[%clk 0:02:23]}  cxd4 {[%clk 0:01:25]} 20. cxd4 {[%clk 0:02:24]}  Qxc2 {[%clk 0:01:17]} 21. Qe3 {[%clk 0:02:22]}  Nc4 {[%clk 0:01:10]} 22. Qf4 {[%clk 0:02:20]}  Qg6 {[%clk 0:01:07]} 23. Nf3 {[%clk 0:02:18]}  Qe4 {[%clk 0:01:01]} 24. Qxe4 {[%clk 0:02:13]}  dxe4 {[%clk 0:01:01]} 25. Ng5 {[%clk 0:02:14]}  e3 {[%clk 0:01:01]} 26. Ne4 {[%clk 0:02:12]}  Ng6 {[%clk 0:00:56]} 27. Rc1 {[%clk 0:02:08]}  O-O {[%clk 0:00:49]} 28. Nd6 {[%clk 0:02:04]}  Nxd6 {[%clk 0:00:39]} 29. exd6 {[%clk 0:02:05]}  exf2 {[%clk 0:00:40]} 30. gxh5 {[%clk 0:02:02]}  Nh8 {[%clk 0:00:24]} 31. d7 {[%clk 0:02:02]}  Rcd8 {[%clk 0:00:23]} 32. Bd6 {[%clk 0:02:02]}  Rxd7 {[%clk 0:00:22]} 33. Bxf8 {[%clk 0:02:02]}  Kxf8 {[%clk 0:00:16]} 34. Rc8+ {[%clk 0:02:01]}  Ke7 {[%clk 0:00:17]} 35. Rxh8 {[%clk 0:02:02]}  Rxd4 {[%clk 0:00:18]} 36. Rf1 {[%clk 0:02:02]}  Rd3 {[%clk 0:00:17]} 37. Rxf2 {[%clk 0:02:02]}  Rxa3 {[%clk 0:00:17]} 38. Rh7 {[%clk 0:02:03]} 1-0


[Site "https://www.chess.com"]

[Event "Titled Tuesday Blitz March 01 Late 2022"]
[White "Albornoz Cabrera, Carlos Daniel"]
[Black "Gulecyuz, Deniz"]
[WhiteFideId "3518736"]
[BlackFideId "30921341"]
[WhiteElo "2805"]
[BlackElo "2116"]
[Result "1-0"]
[Round "04"]
[TimeControl "180+1"]
[Date "2022.03.02"]
[WhiteClock "0:01:25"]
[BlackClock "0:00:10"]

1. e4 {[%clk 0:03:00]}  c5 {[%clk 0:03:00]} 2. Nf3 {[%clk 0:03:00]}  Nc6 {[%clk 0:03:01]} 3. d4 {[%clk 0:03:01]}  cxd4 {[%clk 0:03:02]} 4. Nxd4 {[%clk 0:03:02]}  Nf6 {[%clk 0:03:02]} 5. Nc3 {[%clk 0:03:02]}  e5 {[%clk 0:03:03]} 6. Ndb5 {[%clk 0:03:02]}  d6 {[%clk 0:03:03]} 7. Bg5 {[%clk 0:03:01]}  a6 {[%clk 0:03:04]} 8. Na3 {[%clk 0:03:01]}  b5 {[%clk 0:03:04]} 9. Nd5 {[%clk 0:03:00]}  Be7 {[%clk 0:03:05]} 10. Bxf6 {[%clk 0:03:00]}  Bxf6 {[%clk 0:03:06]} 11. c4 {[%clk 0:03:01]}  Bg5 {[%clk 0:03:00]} 12. cxb5 {[%clk 0:03:00]}  Nd4 {[%clk 0:03:00]} 13. b6 {[%clk 0:02:52]}  O-O {[%clk 0:02:58]} 14. Bc4 {[%clk 0:02:50]}  Kh8 {[%clk 0:02:55]} 15. O-O {[%clk 0:02:49]}  Rb8 {[%clk 0:02:36]} 16. Nc2 {[%clk 0:02:39]}  Nxc2 {[%clk 0:02:22]} 17. Qxc2 {[%clk 0:02:40]}  Be6 {[%clk 0:02:22]} 18. Nc7 {[%clk 0:02:26]}  Bxc4 {[%clk 0:02:19]} 19. Qxc4 {[%clk 0:02:27]}  Rxb6 {[%clk 0:02:20]} 20. b3 {[%clk 0:02:28]}  a5 {[%clk 0:02:03]} 21. Nd5 {[%clk 0:02:27]}  Rb8 {[%clk 0:01:57]} 22. g3 {[%clk 0:02:27]}  f5 {[%clk 0:01:55]} 23. h4 {[%clk 0:02:26]}  Bh6 {[%clk 0:01:53]} 24. exf5 {[%clk 0:02:24]}  Rxf5 {[%clk 0:01:47]} 25. Qe4 {[%clk 0:02:24]}  Rf8 {[%clk 0:01:44]} 26. Rad1 {[%clk 0:02:22]}  Qd7 {[%clk 0:01:19]} 27. Rd3 {[%clk 0:02:21]}  Qh3 {[%clk 0:01:09]} 28. Rf3 {[%clk 0:02:06]}  Rfc8 {[%clk 0:00:49]} 29. Ne7 {[%clk 0:02:00]}  Rc1 {[%clk 0:00:44]} 30. Rxc1 {[%clk 0:01:57]}  Bxc1 {[%clk 0:00:45]} 31. Nf5 {[%clk 0:01:50]}  Ba3 {[%clk 0:00:40]} 32. g4 {[%clk 0:01:48]}  d5 {[%clk 0:00:15]} 33. Qxe5 {[%clk 0:01:34]}  Qxg4+ {[%clk 0:00:16]} 34. Rg3 {[%clk 0:01:34]}  Qd1+ {[%clk 0:00:16]} 35. Kg2 {[%clk 0:01:30]}  Rg8 {[%clk 0:00:13]} 36. Rxg7 {[%clk 0:01:25]}  Bf8 {[%clk 0:00:10]} 1-0


[Site "https://www.chess.com"]

[Event "Titled Tuesday Blitz March 01 Late 2022"]
[White "Araujo Filho, Luiz Antonio Coel"]
[Black "Jarocka, Liwia"]
[WhiteFideId "2130661"]
[BlackFideId "21807558"]
[WhiteElo "2200"]
[BlackElo "1896"]
[Result "1/2-1/2"]
[Round "04"]
[TimeControl "180+1"]
[Date "2022.03.02"]
[WhiteClock "0:00:06"]
[BlackClock "0:00:18"]

1. d4 {[%clk 0:03:00]}  Nf6 {[%clk 0:02:58]} 2. Nf3 {[%clk 0:03:01]}  d5 {[%clk 0:02:55]} 3. e3 {[%clk 0:03:01]}  e6 {[%clk 0:02:55]} 4. Bd3 {[%clk 0:03:00]}  Bd6 {[%clk 0:02:56]} 5. Nbd2 {[%clk 0:03:01]}  O-O {[%clk 0:02:56]} 6. Qe2 {[%clk 0:03:01]}  c5 {[%clk 0:02:57]} 7. c3 {[%clk 0:03:01]}  Nc6 {[%clk 0:02:56]} 8. dxc5 {[%clk 0:03:01]}  Bxc5 {[%clk 0:02:56]} 9. e4 {[%clk 0:03:02]}  dxe4 {[%clk 0:02:51]} 10. Nxe4 {[%clk 0:03:03]}  Nxe4 {[%clk 0:02:50]} 11. Bxe4 {[%clk 0:03:03]}  g6 {[%clk 0:02:50]} 12. O-O {[%clk 0:03:03]}  Qc7 {[%clk 0:02:39]} 13. Bh6 {[%clk 0:02:47]}  Re8 {[%clk 0:02:39]} 14. Bc2 {[%clk 0:02:44]}  e5 {[%clk 0:02:36]} 15. h3 {[%clk 0:02:43]}  Be6 {[%clk 0:02:32]} 16. Ng5 {[%clk 0:02:39]}  Bd5 {[%clk 0:02:19]} 17. Rad1 {[%clk 0:02:29]}  Rad8 {[%clk 0:02:18]} 18. b3 {[%clk 0:02:12]}  Be7 {[%clk 0:02:10]} 19. Ne4 {[%clk 0:02:07]}  Bxe4 {[%clk 0:02:07]} 20. Qxe4 {[%clk 0:02:06]}  Bf6 {[%clk 0:02:05]} 21. h4 {[%clk 0:01:58]}  Qe7 {[%clk 0:01:56]} 22. h5 {[%clk 0:01:56]}  Bg7 {[%clk 0:01:55]} 23. Bc1 {[%clk 0:01:49]}  f5 {[%clk 0:01:52]} 24. Qc4+ {[%clk 0:01:42]}  Kh8 {[%clk 0:01:51]} 25. Rfe1 {[%clk 0:01:26]}  e4 {[%clk 0:01:48]} 26. hxg6 {[%clk 0:00:55]}  hxg6 {[%clk 0:01:47]} 27. Bf4 {[%clk 0:00:45]}  Be5 {[%clk 0:01:34]} 28. Bxe5+ {[%clk 0:00:38]}  Nxe5 {[%clk 0:01:35]} 29. Qb5 {[%clk 0:00:32]}  a6 {[%clk 0:01:31]} 30. Qb6 {[%clk 0:00:30]}  Qg5 {[%clk 0:00:55]} 31. Rxd8 {[%clk 0:00:23]}  Rxd8 {[%clk 0:00:56]} 32. Rd1 {[%clk 0:00:22]}  Rxd1+ {[%clk 0:00:50]} 33. Bxd1 {[%clk 0:00:22]}  Nf3+ {[%clk 0:00:47]} 34. Kf1 {[%clk 0:00:18]}  Qd2 {[%clk 0:00:41]} 35. Qf6+ {[%clk 0:00:13]}  Kh7 {[%clk 0:00:40]} 36. Qf7+ {[%clk 0:00:11]}  Kh6 {[%clk 0:00:41]} 37. Qf8+ {[%clk 0:00:11]}  Kg5 {[%clk 0:00:41]} 38. Qe7+ {[%clk 0:00:09]}  Kh6 {[%clk 0:00:33]} 39. Qf8+ {[%clk 0:00:08]}  Kh5 {[%clk 0:00:27]} 40. Bxf3+ {[%clk 0:00:08]}  exf3 {[%clk 0:00:27]} 41. Qh8+ {[%clk 0:00:08]}  Kg5 {[%clk 0:00:27]} 42. gxf3 {[%clk 0:00:08]}  Qxa2 {[%clk 0:00:21]} 43. Qd8+ {[%clk 0:00:07]}  Kh6 {[%clk 0:00:20]} 44. Qh8+ {[%clk 0:00:07]}  Kg5 {[%clk 0:00:20]} 45. Qd8+ {[%clk 0:00:06]}  Kf4 {[%clk 0:00:20]} 46. Qd4+ {[%clk 0:00:05]}  Kxf3 {[%clk 0:00:17]} 47. Qd3+ {[%clk 0:00:04]}  Kg4 {[%clk 0:00:17]} 48. Qg3+ {[%clk 0:00:04]}  Kh5 {[%clk 0:00:17]} 49. Qh3+ {[%clk 0:00:04]}  Kg5 {[%clk 0:00:17]} 50. Qg3+ {[%clk 0:00:04]}  Kf6 {[%clk 0:00:18]} 51. Qd6+ {[%clk 0:00:05]}  Kg7 {[%clk 0:00:18]} 52. Qe7+ {[%clk 0:00:05]}  Kh6 {[%clk 0:00:18]} 53. Qh4+ {[%clk 0:00:05]}  Kg7 {[%clk 0:00:17]} 54. Qe7+ {[%clk 0:00:06]}  Kg8 {[%clk 0:00:18]} 55. Qe8+ {[%clk 0:00:06]}  Kg7 {[%clk 0:00:18]} 56. Qe7+ {[%clk 0:00:06]} 1/2-1/2


[Site "https://www.chess.com"]

[Event "Titled Tuesday Blitz March 01 Late 2022"]
[White "Ashiev, Eduard"]
[Black "Dubov, Daniil"]
[WhiteFideId "4130090"]
[BlackFideId "24126055"]
[WhiteElo "2004"]
[BlackElo "2791"]
[Result "0-1"]
[Round "04"]
[TimeControl "180+1"]
[Date "2022.03.02"]
[WhiteClock "0:00:06"]
[BlackClock "0:00:56"]

1. d4 {[%clk 0:02:56]}  Nc6 {[%clk 0:03:00]} 2. d5 {[%clk 0:02:53]}  Nb8 {[%clk 0:02:57]} 3. e4 {[%clk 0:02:52]}  d6 {[%clk 0:02:58]} 4. c4 {[%clk 0:02:50]}  g6 {[%clk 0:02:57]} 5. Nc3 {[%clk 0:02:50]}  Bg7 {[%clk 0:02:57]} 6. Bd3 {[%clk 0:02:41]}  Nd7 {[%clk 0:02:55]} 7. Nge2 {[%clk 0:02:34]}  Ngf6 {[%clk 0:02:53]} 8. O-O {[%clk 0:02:31]}  O-O {[%clk 0:02:49]} 9. Re1 {[%clk 0:02:20]}  c6 {[%clk 0:02:47]} 10. Ng3 {[%clk 0:02:10]}  Nc5 {[%clk 0:02:42]} 11. Bc2 {[%clk 0:02:08]}  cxd5 {[%clk 0:02:38]} 12. exd5 {[%clk 0:02:02]}  Bd7 {[%clk 0:02:25]} 13. Be3 {[%clk 0:01:59]}  Rc8 {[%clk 0:02:25]} 14. Bd4 {[%clk 0:01:54]}  Re8 {[%clk 0:02:21]} 15. Qd2 {[%clk 0:01:50]}  a5 {[%clk 0:02:17]} 16. Rad1 {[%clk 0:01:47]}  h5 {[%clk 0:01:56]} 17. h3 {[%clk 0:01:44]}  h4 {[%clk 0:01:53]} 18. Nf1 {[%clk 0:01:27]}  e5 {[%clk 0:01:51]} 19. dxe6 {[%clk 0:01:24]}  Nxe6 {[%clk 0:01:51]} 20. Bxf6 {[%clk 0:01:13]}  Bxf6 {[%clk 0:01:50]} 21. Ne4 {[%clk 0:01:01]}  Rxc4 {[%clk 0:01:22]} 22. Nxd6 {[%clk 0:00:34]}  Rd4 {[%clk 0:01:21]} 23. Qc1 {[%clk 0:00:14]}  Re7 {[%clk 0:01:20]} 24. Ne4 {[%clk 0:00:12]}  Bg7 {[%clk 0:01:17]} 25. Rxd4 {[%clk 0:00:10]}  Nxd4 {[%clk 0:01:17]} 26. Bb3 {[%clk 0:00:09]}  Nxb3 {[%clk 0:01:00]} 27. axb3 {[%clk 0:00:08]}  Bc6 {[%clk 0:01:01]} 28. Nc5 {[%clk 0:00:06]}  Rxe1 {[%clk 0:00:57]} 29. Qxe1 {[%clk 0:00:06]}  Qd5 {[%clk 0:00:56]} 0-1


[Site "https://www.chess.com"]

[Event "Titled Tuesday Blitz March 01 Late 2022"]
[White "Baskin, Robert"]
[Black "Grigorov, Grigor"]
[WhiteFideId "24662402"]
[BlackFideId "2907313"]
[WhiteElo "2488"]
[BlackElo "2510"]
[Result "0-1"]
[Round "04"]
[TimeControl "180+1"]
[Date "2022.03.01"]
[WhiteClock "0:00:02"]
[BlackClock "0:00:39"]

1. d4 {[%clk 0:03:00]}  Nf6 {[%clk 0:02:59]} 2. c4 {[%clk 0:03:00]}  e6 {[%clk 0:02:59]} 3. Nf3 {[%clk 0:03:00]}  Bb4+ {[%clk 0:02:57]} 4. Nbd2 {[%clk 0:02:59]}  b6 {[%clk 0:02:53]} 5. g3 {[%clk 0:02:58]}  Bb7 {[%clk 0:02:52]} 6. Bg2 {[%clk 0:02:59]}  O-O {[%clk 0:02:52]} 7. O-O {[%clk 0:02:59]}  Bxd2 {[%clk 0:02:50]} 8. Qxd2 {[%clk 0:02:55]}  a5 {[%clk 0:02:44]} 9. b3 {[%clk 0:02:51]}  Be4 {[%clk 0:02:44]} 10. Bb2 {[%clk 0:02:50]}  d6 {[%clk 0:02:44]} 11. Bh3 {[%clk 0:02:45]}  h6 {[%clk 0:02:34]} 12. Ne1 {[%clk 0:02:41]}  Bb7 {[%clk 0:02:21]} 13. Nd3 {[%clk 0:02:34]}  Nbd7 {[%clk 0:02:19]} 14. f3 {[%clk 0:02:23]}  c5 {[%clk 0:02:15]} 15. e4 {[%clk 0:02:21]}  cxd4 {[%clk 0:02:14]} 16. Bxd4 {[%clk 0:02:20]}  Qc7 {[%clk 0:02:12]} 17. Rad1 {[%clk 0:02:16]}  Rad8 {[%clk 0:02:11]} 18. Bb2 {[%clk 0:02:11]}  Rfe8 {[%clk 0:02:10]} 19. Bg2 {[%clk 0:02:03]}  b5 {[%clk 0:01:59]} 20. cxb5 {[%clk 0:01:57]}  Qb6+ {[%clk 0:01:59]} 21. Kh1 {[%clk 0:01:57]}  Qxb5 {[%clk 0:01:59]} 22. Qe3 {[%clk 0:01:46]}  e5 {[%clk 0:01:53]} 23. Nf2 {[%clk 0:01:25]}  d5 {[%clk 0:01:49]} 24. g4 {[%clk 0:01:21]}  d4 {[%clk 0:01:40]} 25. Qd2 {[%clk 0:01:19]}  Nf8 {[%clk 0:01:35]} 26. Nd3 {[%clk 0:01:14]}  Ng6 {[%clk 0:01:31]} 27. g5 {[%clk 0:01:08]}  hxg5 {[%clk 0:01:27]} 28. Qxg5 {[%clk 0:01:09]}  Qb6 {[%clk 0:01:19]} 29. Bc1 {[%clk 0:01:03]}  Ba6 {[%clk 0:01:15]} 30. h4 {[%clk 0:00:59]}  Nh7 {[%clk 0:01:01]} 31. Qg3 {[%clk 0:01:00]}  Bxd3 {[%clk 0:00:58]} 32. Rxd3 {[%clk 0:01:00]}  Qf6 {[%clk 0:00:58]} 33. h5 {[%clk 0:00:50]}  Nf4 {[%clk 0:00:58]} 34. Bxf4 {[%clk 0:00:50]}  exf4 {[%clk 0:00:58]} 35. Qg4 {[%clk 0:00:50]}  Re5 {[%clk 0:00:56]} 36. Rg1 {[%clk 0:00:17]}  Qh6 {[%clk 0:00:52]} 37. Bh3 {[%clk 0:00:12]}  Rxh5 {[%clk 0:00:50]} 38. Kg2 {[%clk 0:00:11]}  Rg5 {[%clk 0:00:50]} 39. Kf2 {[%clk 0:00:09]}  Rxg4 {[%clk 0:00:49]} 40. Bxg4 {[%clk 0:00:10]}  Nf6 {[%clk 0:00:45]} 41. Bf5 {[%clk 0:00:09]}  g6 {[%clk 0:00:43]} 42. e5 {[%clk 0:00:05]}  Qh4+ {[%clk 0:00:40]} 43. Kf1 {[%clk 0:00:02]}  Nd5 {[%clk 0:00:39]} 44. Be4 {[%clk 0:00:02]}  Ne3+ {[%clk 0:00:39]} 0-1


[Site "https://www.chess.com"]